{"text_format":"2","workbook":"xlsx","n_sheets":1,"sheets":["Cronograma Físico-Financeiro"],"not_rendered":{"charts":0,"images":0,"macros":0,"external_links":0,"defined_names":515,"comments":0,"pivot_tables":0},"unopened":[],"bounds":{"document_bytes":16777216,"sheet_cells":100000,"run_cost":"one","rows_first":2000,"rows_last":500,"rows_between":2000,"halvings":0,"cell_chars":16384,"cell_head_chars":4096},"cells_cut":0,"cells_raw":0,"read":"whole","date_system":"1900"}

{"sheet":"Cronograma Físico-Financeiro","index":0,"n_rows":44,"n_cols":8,"rows_kept":44,"cut":false,"hidden":false,"merged":[[2,2,2,6],[29,0,29,1],[36,3,36,6],[2,0,3,0],[2,1,3,1],[0,0,1,7]]}
["CRONOGRAMA FÍSICO FINANCEIRO "]
[]
["ITEM","DISCRIMINAÇÃO","CRONOGRAMA FÍSICO-FINANCEIRO"]
[null,null,"Preço Total","30 DIAS","60 DIAS","90 DIAS","120 DIAS","TOTAL"]
[null,null,null,1,null,null,null,{"$f":"SUM(D5:G5)","v":1}]
["1.1","Mobilização de Equipamento, Materiais e Pessoal, com deslocamentos internos.",218.04,{"$f":"D5*$C6","v":218.04},null,null,null,{"$f":"SUM(D6:G6)","v":218.04}]
[{"$nulls":6},1,{"$f":"SUM(D7:G7)","v":1}]
["1.2","Desmobilização de Equipamento, Material e Pessoal.",57.3,null,null,null,{"$f":"G7*$C8","v":57.3},57.3]
[null,null,null,0.25,0.25,0.25,0.25,1]
["1.3","Administração local da obra.",420.25,{"$f":"D9*$C10","v":105.0625},105.0625,105.0625,105.0625,420.25]
[null,null,null,1,null,null,null,1]
["1.4","Placa de identificação de obra conforme modelo fornecido pela CODEVASF medindo 3,0m X 2,0 m, incluindo fornecimento, instalação e conservação.",376.41,{"$f":"D11*$C12","v":376.41},null,null,null,376.41]
[null,null,null,0.25,0.25,0.25,0.25,1]
["1.5","Locação de Veiculo tipo Caminhonete, diesel, 4x4, cabine dupla  (163 CV), sem motorista, para fiscalização, incluindo combustível, lubrificantes e manutenção.",267.91,{"$f":"D13*$C14","v":66.9775},{"$f":"E13*$C14","v":66.9775},{"$f":"F13*$C14","v":66.9775},{"$f":"G13*$C14","v":66.9775},267.91]
[null,null,null,1,null,null,null,1]
["1.6","Registro em cartório de registro de imóveis ou títulos de documentos do Termo de Cessão de uso da área onde está sendo recuperada a aguada. ",264.67,{"$f":"D15*$C16","v":264.67},null,null,null,264.67]
[null,null,null,1,null,null,null,1]
["1.7","Abertura de caminho de serviço, com 4,0 metros de largura.",200,{"$f":"D17*$C18","v":200},null,null,null,200]
[null,null,null,1,null,null,null,1]
["1.8","Demolição de cerca - estaca de madeira, com até 20 fios de arame farpado.",104.4,{"$f":"D19*$C20","v":104.4},null,null,null,104.4]
[{"$nulls":6},1,1]
["1.9","Reassentamento de cerca - estaca de madeira, com até 20 fios de arame farpado.",148.35,null,null,null,{"$f":"G21*$C22","v":148.35},148.35]
[null,null,null,1,null,null,null,1]
["1.10","Desmatamento e limpeza mecanizada de terreno com árvores até Ø 15 cm, utilizando trator de esteiras. ",900,{"$f":"D23*$C24","v":900},null,null,null,900]
[{"$nulls":4},0.4,0.4,0.2,1]
["1.11","Escavação, carga e transporte de material de 1ª categoria, caminho de serviço leito natural, com escavadeira hidráulica e caminhão basculante 10 m³, DMT de 50 ate 200 m.",12682,null,{"$f":"E25*$C26","v":5072.8},5072.8,2536.4,12682]
[{"$nulls":4},0.4,0.4,0.2,1]
["1.12","Espalhamento e Compactação mecânica de material de 1ª categoria em talude de aguada sem controle do Grau de Compactação mediante a utilização de trator de esteiras com potencia de  150HP.",3094,null,{"$f":"E27*$C28","v":1237.6},{"$f":"F27*$C28","v":1237.6},{"$f":"G27*$C28","v":618.8},3094]
[]
["VALOR TOTAL ",null,{"$f":"SUM(C6:C29)","v":18733.33},{"$f":"D6+D8+D10+D12+D14+D16+D18+D20+D22+D24+D26+D28","v":2235.56},{"$f":"E6+E8+E10+E12+E14+E16+E18+E20+E22+E24+E26+E28","v":6482.44},6482.44,3532.89,18733.33]
[]
[null,null,"ACUMULADO",{"$f":"D30","v":2235.56},{"$f":"D32+E30","v":8718},{"$f":"E32+F30","v":15200.44},18733.33]
{"$rows_empty":11}
[null,4]